Cogmind - Beta 12 X1 @@@ ROGUE MODE // 2022.07.27 @ 20:16:38 Player: Plexion Result: Destroyed by D-53 Grenadier with Mini Grenade Launcher Performance ------------- Evolutions (0) 0 Regions Visited (2) 400 Robots Destroyed (11) 55 Value Destroyed (333) 333 Prototype IDs (0) 0 Alien Tech Used (0) 0 Bonus (-174) -174 TOTAL SCORE: 614 Bonus ------- Friendly Fire -174 Cogmind --------- Core Integrity 0/250 Matter 176/300 Energy 83/100 System Corruption 0% Temperature Cool (0) Movement Core (100) Ox1 Location -10/Mines Parts ------- > --- POWER (1) -------- (None) > --- PROPULSION (2) --- (None) > --- UTILITY (2) ------ Small Storage Unit Targeting Computer > --- WEAPON (2) ------- (None) > --- INVENTORY (8) ---- Light Ion Engine Targeting Computer Rocket Launcher Rocket Launcher Rocket Launcher Peak State ------------ > --- POWER ------------ Ion Engine > --- PROPULSION ------- Light Treads Light Treads > --- UTILITY ---------- Small Storage Unit Targeting Computer > --- WEAPON ----------- Light Assault Rifle Rocket Launcher > --- INVENTORY -------- Light Ion Engine Light Treads Small Laser Assault Rifle Rocket Launcher Rocket Launcher [Rating: 8] Favorites ----------- Power Ion Engine Engine Ion Engine Propulsion Light Treads Treads Light Treads Utility Small Storage Unit Storage Small Storage Unit Processor Targeting Computer Weapon Light Assault Rifle Energy Gun Small Laser Ballistic Gun Light Assault Rifle Launcher Rocket Launcher Build | -11 -10 -10 ------- Run | Scr Mat Min Slots Evolved . | . . . Power . | . . . Propulsion . | . . . Utility . | . . . Weapon . | . . . Parts Attached 15 | 6 3 6 Power 1 | 1 . . Engine 1 | 1 . . Core . | . . . Reactor . | . . . Propulsion 3 | 2 . 1 Treads 3 | 2 . 1 Leg . | . . . Wheel . | . . . Hover . | . . . Flight . | . . . Utility 2 | 1 1 . Device . | . . . Storage 1 | 1 . . Processor 1 | . 1 . Hackware . | . . . Protection . | . . . Artifact . | . . . Weapon 9 | 2 2 5 Energy Gun 1 | . . 1 Energy Cannon . | . . . Ballistic Gun 5 | 2 1 2 Ballistic Cannon . | . . . Launcher 3 | . 1 2 Special Weapon . | . . . Impact Weapon . | . . . Slashing Weapon . | . . . Piercing Weapon . | . . . Special Melee Weapon . | . . . Unidentified Prototypes . | . . . Parts Lost 7 | . . 7 Power 1 | . . 1 Propulsion 3 | . . 3 Utility . | . . . Weapon 3 | . . 3 Highest Loss Streak 7 | . . 7 To Critical Strikes . | . . . Average Slot Usage (%) 93 | . 91 96 Engine 13 | . 14 12 Treads 27 | . 28 26 Storage 14 | . 14 14 Processor 8 | . 6 14 Ballistic Gun 26 | . 27 22 Launcher 1 | . . 3 Naked Turns . | . . . Heaviest Build 15 | 13 13 15 Greatest Support 40 | 40 40 40 Greatest Overweight (x) . | . . . Average Overweight (x) . | . . . Largest Inventory Capacity 8 | 8 8 8 Average Capacity 7 | 6 8 8 Most Carried 7 | 2 7 7 Average Carried 5 | . 6 6 Final Capacity 8 | 8 8 8 Final Carried 7 | 2 7 5 Class Distribution -------------------- 100% | Mutant Dominant Class ---------------- Mutant | -10/Materials Mutant | -10/Mines Resources | -11 -10 -10 ----------- Run | Scr Mat Min Matter Collected 501 | 201 209 91 Remotely . | . . . Salvage Created 312 | . 218 94 Parts 20 | . 10 10 Haulers Intercepted . | . . . Recyclers Shooed 1 | . . 1 Parts Field Recycled . | . . . Retrieved Matter . | . . . Parts Self-Destructed . | . . . Prevented . | . . . Kills | -11 -10 -10 ------- Run | Scr Mat Min Combat Hostiles Destroyed 23 | . 6 17 Guns 5 | . 4 1 AOE 18 | . 2 16 Classes Destroyed 5 | . 1 4 Swarmer 3 | . . 3 Grunt 6 | . 6 . Demolisher 1 | . . 1 Assembled 13 | . . 13 Guerrilla 1 | . . 1 Best Kill Streak 13 | . 2 13 Combat Bots Only 13 | . 2 13 Max Kills in Single Turn 3 | . 1 3 Gunslinging . | . . . Exploded 3 | . 1 3 Melee . | . . . Uniques/NPCs Destroyed . | . . . Combat | -11 -10 -10 -------- Run | Scr Mat Min Damage Taken 1065 | . 414 651 Core 274 | . 112 162 Absorbed by Shields . | . . . Core Remaining (%) 100 | 100 . . Volleys Fired 51 | . 23 28 Largest 2 | . 2 2 Hottest 60 | . 40 60 Shots Fired 77 | . 42 35 Gun 58 | . 38 20 Cannon . | . . . Launcher 19 | . 4 15 Special . | . . . Kinetic 51 | . 38 13 Thermal 7 | . . 7 Explosive 19 | . 4 15 Electromagnetic . | . . . Robot Hit Streak 12 | . 12 9 Robot Miss Streak 5 | . 2 5 Penetration Max . | . . . Secondary Targets 1 | . 1 . Max Gunslinging Chain 1 | . 1 . Shots Hit Robots 49 | . 31 18 Core Hits 60 | . 15 45 Critical Kills . | . . . Critical Parts Destroyed . | . . . Critical Strikes . | . . . Melee Attacks . | . . . Impact . | . . . Slashing . | . . . Piercing . | . . . Sneak Attacks . | . . . Combat Hostiles . | . . . Follow-up Attacks . | . . . Damage Inflicted 1991 | . 610 1381 Guns 469 | . 310 159 Cannons . | . . . Explosions 1522 | . 300 1222 Melee . | . . . Ramming . | . . . Kinetic 392 | . 310 82 Thermal 77 | . . 77 Explosive 1522 | . 300 1222 Electromagnetic . | . . . Impact . | . . . Slashing . | . . . Piercing . | . . . Highest Corruption . | . . . Average Corruption . | . . . Corruption Purged . | . . . Corruption Blocked . | . . . Overload Shots . | . . . Overflow Damage 121 | . 20 101 Projectiles . | . . . Explosions 121 | . 20 101 Melee . | . . . Knockbacks . | . . . Impact . | . . . Kinetic . | . . . Secondary . | . . . Self-Inflicted Damage 59 | . 17 42 Shots 3 | . 1 2 Rammed . | . . . Targets Rammed . | . . . Kicked . | . . . Crushed . | . . . Highest Temperature 27 | . 27 10 Average Temperature 10 | . 10 7 Received Heat Transfer 264 | . 264 . Siege Activations . | . . . Robots Corrupted . | . . . Combat Hostiles . | . . . Parts Fried . | . . . Impact Corruptions . | . . . Robots Melted . | . . . Combat Hostiles . | . . . Parts Melted . | . . . Heat Transferred 175 | . . 175 Parts Sabotaged . | . . . Parts Stolen . | . . . Parts Stripped . | . . . Power Chain Reactions . | . . . Missiles Intercepted . | . . . Alert | -11 -10 -10 ------- Run | Scr Mat Min Peak Influence 287 | . 261 287 Initial 25 | . . 25 Average 133 | . 104 247 Maximum Alert Level 1 | . 1 1 Low Security (%) 56 | 100 66 20 Level 1 43 | . 33 79 Level 2 . | . . . Level 3 . | . . . Level 4 . | . . . Level 5 . | . . . High Security . | . . . Max Security . | . . . Squads Dispatched 2 | . 2 . Investigation 1 | . 1 . Extermination . | . . . Reinforcement 1 | . 1 . Assault . | . . . Garrison . | . . . Intercept . | . . . Searches Triggered . | . . . Construction Impeded . | . . . Haulers Reinforced . | . . . Active Scanning Responses . | . . . Cargo Convoy Interrupts . | . . . Stealth | -11 -10 -10 --------- Run | Scr Mat Min Distress Signals 1 | . 1 . Communications Jammed . | . . . Distress Signals . | . . . Times Spotted 31 | . 11 20 Peak Tracking Total 12 | . 3 12 Tactical Retreats 2 | . . 2 Traps | -11 -10 -10 ------- Run | Scr Mat Min Traps Triggered 1 | . 1 . Indirectly . | . . . Trap Hack Attempts . | . . . Triggered . | . . . Disarmed . | . . . Reprogrammed . | . . . Reused . | . . . Traps Extracted . | . . . Installed . | . . . Triggered . | . . . Machines | -11 -10 -10 ---------- Run | Scr Mat Min Machines Disabled 2 | . 1 1 Max in Single Turn 1 | . 1 1 Machines Sabotaged . | . . . Garrisons Compromised . | . . . Overloaded Fab Kills . | . . . Hacking | -11 -10 -10 --------- Run | Scr Mat Min Machines Accessed 4 | . 4 . Terminals 4 | . 4 . Fabricators . | . . . Repair Stations . | . . . Recycling Units . | . . . Scanalyzers . | . . . Garrison Access . | . . . Total Hacks 13 | . 13 . Successful 5 | . 5 . Failed 8 | . 8 . Catastrophic . | . . . Database Lockouts . | . . . Manual 13 | . 13 . Terminals 13 | . 13 . Fabricators . | . . . Repair Stations . | . . . Recycling Units . | . . . Scanalyzers . | . . . Garrison Access . | . . . Terminal Hacks 4 | . 4 . Robot Analysis 3 | . 3 . Recall Investigation 1 | . 1 . Fabricator Hacks . | . . . Repair Station Hacks . | . . . Recycling Unit Hacks . | . . . Scanalyzer . | . . . Garrison Access Hacks . | . . . Unauthorized Hacks 1 | . 1 . Terminals 1 | . 1 . Operators 1 | . 1 . Fabricators . | . . . Repair Stations . | . . . Recycling Units . | . . . Scanalyzers . | . . . Garrison Access . | . . . Data Cores Recovered . | . . . Used . | . . . Hacking Detections 4 | . 4 . Full Trace Events . | . . . Feedback Events . | . . . Feedback Blocked . | . . . Robot Schematics Acquired . | . . . Robots Built . | . . . Authchips . | . . . Time . | . . . Total Robot Build Rating . | . . . Part Schematics Acquired . | . . . Parts Built . | . . . Authchips . | . . . Time . | . . . Total Part Build Rating . | . . . Parts Repaired . | . . . Time . | . . . Parts Recycled . | . . . Recycled Matter . | . . . Retrieved Matter . | . . . Retrieved Components . | . . . Parts Scanalyzed . | . . . Part Schematics Acquired . | . . . Parts Damaged . | . . . Bothacking | -11 -10 -10 ------------ Run | Scr Mat Min Used RIF Installer . | . . . Robots Hacked . | . . . Non-combat . | . . . Combat . | . . . Robot Hacks Applied . | . . . Relay Couplers Released . | . . . Fabnet Peak Effective % . | . . . Robots Rewired . | . . . Allies Hacked . | . . . Hacks Repelled . | . . . Allies | -11 -10 -10 -------- Run | Scr Mat Min Total Allies 2 | . . 2 Largest Group 2 | . . 2 Highest-Rated Group 42 | . . 42 Highest-Rated Ally 31 | . . 31 Total Orders . | . . . Ally Attacks 1 | . . 1 Total Damage 22 | . . 22 Kills . | . . . Allies Corrupted . | . . . Allies Melted . | . . . Intel | -11 -10 -10 ------- Run | Scr Mat Min Robot Analysis Total 3 | . 3 . Derelict Logs Recovered . | . . . Drone Launches . | . . . Drone Recoveries . | . . . Exploration | -11 -10 -10 ------------- Run | Scr Mat Min Turns Passed 713 | 74 439 200 Spaces Moved 342 | 44 216 82 Core 6 | 6 . . Treads 336 | 38 216 82 Legs . | . . . Wheels . | . . . Hover . | . . . Flight . | . . . Fastest Speed 50 | 50 160 160 Average Speed 158 | 145 160 160 Slowest Speed 160 | 160 160 160 Overloaded Moves . | . . . Propulsion Burnouts . | . . . Robots Hopped . | . . . Cave-ins Triggered . | . . . Exploration Rate (%) 25 | 5 42 28 Regions Visited 2 Branch Regions 1 Pre-discovered Areas . | . . . Known Exits Taken . | . . . Unknown Exits Taken 2 | 1 1 . Scrap Searched 1 | . . 1 Spaces Dug . | . . . Terrain Destroyed 127 | . 12 115 Melee . | . . . Projectile . | . . . AOE 127 | . 12 115 Terrain Rammed . | . . . Walls Destroyed . | . . . Machines Disabled . | . . . Actions | -11 -10 -10 --------- Run | Scr Mat Min Total 437 | 51 270 116 Wait 24 | . 24 . Move 340 | 43 215 82 Hop . | . . . Pick Up 7 | 2 5 . Fast Attach 7 | 6 1 . Attach 2 | . . 2 Detach . | . . . Swap 6 | . 2 4 Drop . | . . . Fire 51 | . 23 28 Melee . | . . . Ram . | . . . Kick . | . . . Crush . | . . . Escape Stasis . | . . . Rewire . | . . . Trap . | . . . Miscellaneous . | . . . Route ------- -11/Scrapyard -10/Materials (discovered 2 exits: [*Mat] / [*Min]) -10/Mines (discovered 1 exit: [*Mat]) History --------- Turn | Location | Event 50 | -11/Scrapyard | Discovered new exit (range 16) 75 | -11/Scrapyard | Entered Materials 304 | -10/Materials | Build established: Mutant 376 | -10/Materials | Discovered new exit (range 10) 505 | -10/Materials | Discovered new exit (range 7) 514 | -10/Materials | Entered Mines 516 | -10/Mines | Discovered new exit (range 10) 540 | -10/Mines | Assembled infested the area 545 | -10/Mines | Assisted by a Guerilla fighting off Assembled 579 | -10/Mines | Core integrity fell below 50% 598 | -10/Mines | Destroyed 13 combat bots 707 | -10/Mines | Core integrity fell below 20% 714 | -10/Mines | Destroyed by D-53 Grenadier with Mini Grenade Launcher Last Messages --------------- 00694_ R-06 Scavenger collects Structural Scanner. 00696_ The unstable cave ceiling collapses. 00696_ Lgt. Treads destroyed. 00698_ Ion Engine destroyed. 00698_ Assault Rifle destroyed. 00700_ R-06 Scavenger collects Cmb. Airjet. 00701_ U-05 Engineer lays Concrete. 00702_ Lgt. Assault Rifle destroyed. 00703_ The unstable cave ceiling collapses. 00703_ U-05 Engineer builds a Wall. 00704_ R-06 Scavenger collects Launcher Guidance Computer. 00706_ The unstable cave ceiling collapses. 00707_ U-05 Engineer lays Concrete. 00708_ U-05 Engineer builds a Wall. 00708_ T-07 Excavator destroyed. 00712_ R-06 Scavenger destroyed. 00713_ U-05 Engineer builds a Wall. 00714_ The unstable cave ceiling collapses. 00714_ Lgt. Treads destroyed. 00714_ Sml. Laser destroyed. Map ----- +----------------------------------------------------+ | ?????????????????????????????????????????????? | | [ ?????????????????????????????????????????????? | | ##????????????????????????????????????????????? | | < ##????????????????????????????????????????????? | | ##????????????????????????????????????????????? | | #?????????????????????????????????????????????? | | #?????????????????????????????????????????????? | | #?????????????????????????????????????????????? | | ##?????????????????????????????????????????????? | | # #??????????????????????????????????????????????? | | #|#??????????????????????????????????????????????? | | #%#??????????????????????????????????????????????? | | #!#####??????????????????????????????????????????? | | #??????????????????????????????????????????? | | #??????????????????????????????????????????? | | """ #?????????????????????????#?#??????????????? | | " """ #???????????????????????? # ####???????????? | | " """ #???????????????????????? # #???????????? | | #??????????????????????? #???????????? | | # #####?##??????????????????? ####??????????? | | # #????## ??????????######## %% u ??????????? | | # #????# ???????#?# d # ##???????????? | | # #????# #??????# # ! #???????????? | | # #????# #####?# =%* #??????????????? | | # #????# ## ! #????????????????? | | # #?????# # | #@ #?????????????????? | | # ######### #?????????????????? | | # #?# #?????????????????? | | ######## #?# ##?????????????????? | | ???????# #?# """ ### ##??????????????????? | | ???????# ### """ #?########???????????????????? | | ???????# ## """ #????????????????????????????? | | ???????# ## ##???????????????????????????? | | ???????# ## ##??????????????????????????? | | """ #### ## ##?????????????????????????? | | ### #?????????????????????????? | | """ #### #?## #?????????????????????????? | | ???????# ###### ##?????????????????????????? | | ???????# #??????????????????????????? | | ???????## #??????????????????????????? | | ????????# ###### ##??????????????????????????? | | ????????# #????####???????????????????????????? | | ????????## ##???????????????????????????????????? | | ?????????####????????????????????????????????????? | | ?????????????????????????????????????????????????? | | | | | | | | | | | +----------------------------------------------------+ Best States ------------- Heat Dissipation 25 Energy Generation 10 Energy Capacity 250 Matter Stores 300 Matter Capacity 300 Sight Range 16 Terrain Scan Density 10 Evasion (%) 40 Targeting Accuracy 5 Recoil Reduction 2 Item Schematics ----------------- None Robot Schematics ------------------ None Fabricated ------------ Nothing Alien Tech Used ----------------- None Achievements -------------- None Challenges ------------ None Game ------ Seed ReinforcedAlertSegregator Manual? 0 Play Time 00:07:58 Cumulative 266.8 hours Start 2022.07.27 @ 20:10:27 End 2022.07.27 @ 20:16:38 Sessions 1 Manual Loads 0 Difficulty Rogue Special Mode None Game No. 371 Rogue 284 Adventurer 87 Explorer 0 Win Type - Total 9 Types 4/0/3/1/1/0/0/0/0 Lore% 77 Gallery% 80 Achievement% 70 Wizard Run 0 Options --------- ASCII 0 Keyboard 1 Movement Numpad Keybinds 0 Fullscreen 1 Font 18/Smallcaps Map View 76x50 Tactical HUD 1 Map Filters NONE Filters NONE Steam 1 RUN: d1be88b5-8c4e-4e96-ad0b-8222f0c7cbef